[Event "IM Marmaris Karia VII 2019"]
[Site "Marmaris"]
[Date "2019.05.25"]
[Round "4.1"]
[White "Papenin, Nikolai"]
[Black "Eminov, Orkhan"]
[Result "1/2-1/2"]
[ECO "E70"]
[WhiteElo "2336"]
[BlackElo "2353"]
[Annotator "NA"]
[PlyCount "116"]
[EventDate "2019.05.25"]
[EventType "schev"]
[EventCountry "TUR"]
[SourceTitle "playchess.com"]
[Source "ChessBase"]
[SourceQuality "1"]
[TimeControl "5400+30"]

1. d4 {[%emt 0:00:30]} Nf6 {[%emt 0:00:30]} 2. c4 {[%emt 0:00:00]} g6 {[%emt 0:00:00]} 3. Nc3 {[%emt 0:00:00]} Bg7 {[%emt 0:00:00]} 4. e4 {[%emt 0:00:00]} d6 {[%emt 0:00:30]} 5. Bd3 {[%emt 0:00:00]} O-O {[%emt 0:00:30]} 6. Nge2 {[%emt 0:00:00]} Nc6 {[%emt 0:00:30]} 7. O-O {[%emt 0:00:00]} Nh5 {[%emt 0:02:30]} 8. Bc2 {[%emt 0:00:30]} e5 {[%emt 0:00:00]} 9. d5 {[%emt 0:00:30]} Ne7 {[%emt 0:00:00]} 10. a4 {[%emt 0:04:30]} f5 {[%emt 0:01:30]} 11. exf5 {[%emt 0:15:30]} gxf5 {[%emt 0:00:00]} 12. Bg5 {[%emt 0:07:30]} h6 {[%emt 0:00:00]} 13. Bh4 {[%emt 0:00:00]} a6 {[%emt 0:01:30]} 14. f4 {[%emt 0:08:00]} Qe8 {[%emt 0:03:30]} 15. fxe5 {[%emt 0:05:30]} Ng6 {[%emt 0:01:30]} 16. Bf6 {[%emt 0:04:30]} Nxf6 {[%emt 0:03:30]} 17. exf6 {[%emt 0:00:30]} Qe3+ {[%emt 0:14:30]} 18. Kh1 {[%emt 0:00:30]} Bxf6 {[%emt 0:01:30]} 19. Ng3 {[%emt 0:09:30]} Qg5 {[%emt 0:27:30]} 20. Bxf5 {[%emt 0:01:30]} Bxc3 {[%emt 0:05:30]} 21. Ne4 {[%emt 0:03:30]} Qh4 {[%emt 0:04:30]} 22. Bxg6 {[%emt 0:11:30]} Bg4 {[%emt 0:00:30]} 23. Qd3 {[%emt 0:03:30]} Bxb2 {[%emt 0:06:30]} 24. Rxf8+ {[%emt 0:02:30]} Rxf8 {[%emt 0:00:30]} 25. Rf1 {[%emt 0:00:30]} Qe7 {[%emt 0:06:10]} 26. Ng3 {[%emt 0:02:51]} Rxf1+ {[%emt 0:03:02]} 27. Qxf1 {[%emt 0:00:09]} Qf6 {[%emt 0:01:14]} 28. Bf5 {[%emt 0:01:05]} Bxf5 {[%emt 0:00:30]} 29. Qxf5 {[%emt 0:00:30]} Qxf5 {[%emt 0:00:30]} 30. Nxf5 {[%emt 0:00:30]} Bc1 {[%emt 0:00:30]} 31. g4 {[%emt 0:03:39]} Kf7 {[%emt 0:06:22]} 32. Kg2 {[%emt 0:00:13]} Kf6 {[%emt 0:00:14]} 33. Kf3 {[%emt 0:05:16]} Ke5 {[%emt 0:00:18]} 34. h4 {[%emt 0:01:05]} a5 {[%emt 0:00:30]} 35. Ke2 {[%emt 0:01:42]} Ke4 {[%emt 0:02:54]} 36. Kd1 {[%emt 0:01:43]} Bf4 {[%emt 0:00:24]} 37. Ng7 {[%emt 0:00:19]} c6 {[%emt 0:05:02]} 38. Ne6 {[%emt 0:01:44]} cxd5 {[%emt 0:00:58]} 39. cxd5 {[%emt 0:00:20]} Bg3 {[%emt 0:00:23]} 40. Nd8 {[%emt 0:05:02]} b6 {[%emt 0:01:17]} 41. Nf7 {[%emt 0:00:12]} Bxh4 {[%emt 0:01:25]} 42. Nxh6 {[%emt 0:01:33]} Kxd5 {[%emt 0:00:07]} 43. Kc2 {[%emt 0:00:05]} Kc5 {[%emt 0:01:27]} 44. Kb3 {[%emt 0:00:04]} d5 {[%emt 0:00:20]} 45. Nf7 {[%emt 0:00:08]} b5 {[%emt 0:01:08]} 46. axb5 {[%emt 0:01:11]} Kxb5 {[%emt 0:00:12]} 47. Nd6+ {[%emt 0:00:15]} Kc5 {[%emt 0:00:18]} 48. Nb7+ {[%emt 0:01:29]} Kb6 {[%emt 0:00:15]} 49. Nd6 {[%emt 0:00:02]} Kc6 {[%emt 0:00:49]} 50. Nf5 {[%emt 0:00:15]} Bd8 {[%emt 0:00:10]} 51. Nd4+ {[%emt 0:01:20]} Kd6 {[%emt 0:00:16]} 52. Ka4 {[%emt 0:00:06]} Bb6 {[%emt 0:00:16]} 53. Nb3 {[%emt 0:00:18]} Ke5 {[%emt 0:01:03]} 54. Nxa5 {[%emt 0:01:45]} Kf4 {[%emt 0:00:26]} 55. Nb3 {[%emt 0:00:33]} Kxg4 {[%emt 0:00:09]} 56. Kb5 {[%emt 0:00:04]} Bf2 {[%emt 0:00:10]} 57. Kc6 {[%emt 0:00:04]} d4 {[%emt 0:00:06]} 58. Nxd4 {[%emt 0:00:02]} Bxd4 {[%emt 0:00:36]} 1/2-1/2

[Event "IM Marmaris Karia VII 2019"]
[Site "Marmaris"]
[Date "2019.05.25"]
[Round "4.2"]
[White "Darban, Morteza"]
[Black "Tanriverdi, Enes"]
[Result "0-1"]
[ECO "D00"]
[WhiteElo "2285"]
[BlackElo "2348"]
[Annotator "NA"]
[PlyCount "52"]
[EventDate "2019.05.25"]
[EventType "schev"]
[EventCountry "TUR"]
[SourceTitle "playchess.com"]
[Source "ChessBase"]
[SourceQuality "1"]
[TimeControl "5400+30"]

1. d4 {[%emt 0:05:30]} Nf6 {[%emt 0:00:30]} 2. Bg5 {[%emt 0:00:00]} d5 {[%emt 0:00:00]} 3. Bxf6 {[%emt 0:00:00]} gxf6 {[%emt 0:00:00]} 4. e3 {[%emt 0:02:30]} c5 {[%emt 0:00:30]} 5. Nf3 {[%emt 0:02:30]} cxd4 {[%emt 0:00:30]} 6. exd4 {[%emt 0:00:30]} Bg4 {[%emt 0:00:00]} 7. Be2 {[%emt 0:03:30]} Nc6 {[%emt 0:00:00]} 8. c3 {[%emt 0:00:00]} e6 {[%emt 0:03:30]} 9. Nbd2 {[%emt 0:01:00]} Bd6 {[%emt 0:00:30]} 10. Qb3 {[%emt 0:04:30]} Rb8 {[%emt 0:01:30]} 11. O-O {[%emt 0:00:30]} Rg8 {[%emt 0:10:30]} 12. Kh1 {[%emt 0:15:30]} Kf8 {[%emt 0:01:30]} 13. Rfe1 {[%emt 0:08:30]} Ne7 {[%emt 0:08:30]} 14. Nf1 {[%emt 0:03:30]} Nf5 {[%emt 0:01:30]} 15. Ne3 {[%emt 0:02:30]} Nxe3 {[%emt 0:00:30]} 16. fxe3 {[%emt 0:00:30]} Qc7 {[%emt 0:00:30]} 17. h3 {[%emt 0:00:30]} Bf5 {[%emt 0:08:30]} 18. c4 {[%emt 0:08:30]} Be7 {[%emt 0:02:30]} 19. c5 {[%emt 0:04:30]} Qg3 {[%emt 0:00:30]} 20. Rg1 {[%emt 0:00:00]} Bd8 {[%emt 0:00:30]} 21. Nh2 {[%emt 0:02:00]} Bc7 {[%emt 0:08:30]} 22. Nf1 {[%emt 0:00:30]} Qf2 {[%emt 0:00:30]} 23. Qd1 {[%emt 0:03:30]} Bxh3 {[%emt 0:00:30]} 24. Bf3 {[%emt 0:02:30]} Bf5 {[%emt 0:02:30]} 25. Qe1 {[%emt 0:01:30]} Rg6 {[%emt 0:01:30]} 26. Nh2 {[%emt 0:00:00]} Rh6 {[%emt 0:00:30]} 0-1

[Event "IM Marmaris Karia VII 2019"]
[Site "Marmaris"]
[Date "2019.05.25"]
[Round "4.3"]
[White "Mgeladze, Tamaz"]
[Black "Alaz, Ahmet Efekan"]
[Result "1/2-1/2"]
[ECO "B18"]
[WhiteElo "2396"]
[BlackElo "2252"]
[Annotator "NA"]
[PlyCount "40"]
[EventDate "2019.05.25"]
[EventType "schev"]
[EventCountry "TUR"]
[SourceTitle "playchess.com"]
[Source "ChessBase"]
[SourceQuality "1"]
[TimeControl "5400+30"]

1. e4 {[%emt 0:00:30]} c6 {[%emt 0:00:30]} 2. d4 {[%emt 0:00:00]} d5 {[%emt 0:00:00]} 3. Nd2 {[%emt 0:00:00]} dxe4 {[%emt 0:00:00]} 4. Nxe4 {[%emt 0:00:00]} Bf5 {[%emt 0:00:30]} 5. Ng3 {[%emt 0:00:00]} Bg6 {[%emt 0:00:00]} 6. Nf3 {[%emt 0:01:30]} Nd7 {[%emt 0:02:00]} 7. Bd3 {[%emt 0:00:00]} Bxd3 {[%emt 0:01:30]} 8. Qxd3 {[%emt 0:00:00]} e6 {[%emt 0:00:30]} 9. O-O {[%emt 0:01:30]} Ngf6 {[%emt 0:00:30]} 10. c4 {[%emt 0:02:30]} Be7 {[%emt 0:01:30]} 11. Bf4 {[%emt 0:00:00]} O-O {[%emt 0:00:30]} 12. Rfd1 {[%emt 0:01:00]} Qb6 {[%emt 0:04:30]} 13. Qc2 {[%emt 0:01:30]} Rfe8 {[%emt 0:00:30]} 14. Ne5 {[%emt 0:00:00]} Rad8 {[%emt 0:01:30]} 15. Rd3 {[%emt 0:00:00]} c5 {[%emt 0:03:30]} 16. Rb3 {[%emt 0:00:30]} Qa6 {[%emt 0:01:30]} 17. Ra3 {[%emt 0:00:00]} Qb6 {[%emt 0:00:30]} 18. Rb3 {[%emt 0:00:00]} Qa6 {[%emt 0:00:00]} 19. Ra3 {[%emt 0:00:00]} Qb6 {[%emt 0:00:00]} 20. Rb3 {[%emt 0:00:00]} Qa6 {[%emt 0:03:30]} 1/2-1/2

[Event "IM Marmaris Karia VII 2019"]
[Site "Marmaris"]
[Date "2019.05.25"]
[Round "4.4"]
[White "Sibashvili, Giorgi"]
[Black "Kilic, Efe Mert"]
[Result "1/2-1/2"]
[ECO "D10"]
[WhiteElo "2381"]
[BlackElo "2248"]
[Annotator "NA"]
[PlyCount "60"]
[EventDate "2019.05.25"]
[EventType "schev"]
[EventCountry "TUR"]
[SourceTitle "playchess.com"]
[Source "ChessBase"]
[SourceQuality "1"]
[TimeControl "5400+30"]

1. d4 {[%emt 0:00:30]} d5 {[%emt 0:00:30]} 2. c4 {[%emt 0:00:30]} c6 {[%emt 0:00:30]} 3. Nc3 {[%emt 0:00:30]} Nf6 {[%emt 0:00:30]} 4. e3 {[%emt 0:02:30]} Bf5 {[%emt 0:04:30]} 5. cxd5 {[%emt 0:02:30]} cxd5 {[%emt 0:07:30]} 6. Qb3 {[%emt 0:00:30]} Bc8 {[%emt 0:00:30]} 7. Nf3 {[%emt 0:00:30]} Nc6 {[%emt 0:00:30]} 8. Ne5 {[%emt 0:06:30]} e6 {[%emt 0:05:30]} 9. f4 {[%emt 0:07:30]} Be7 {[%emt 0:02:30]} 10. Bd3 {[%emt 0:01:30]} O-O {[%emt 0:00:30]} 11. Bd2 {[%emt 0:00:30]} Nb4 {[%emt 0:07:30]} 12. Be2 {[%emt 0:01:30]} Nd7 {[%emt 0:01:30]} 13. O-O {[%emt 0:04:30]} f5 {[%emt 0:03:30]} 14. Nxd7 {[%emt 0:13:30]} Bxd7 {[%emt 0:01:30]} 15. Na4 {[%emt 0:00:30]} Bxa4 {[%emt 0:00:30]} 16. Qxa4 {[%emt 0:00:30]} Qb6 {[%emt 0:21:30]} 17. Rfc1 {[%emt 0:05:30]} Nc6 {[%emt 0:02:30]} 18. Rc2 {[%emt 0:02:30]} a6 {[%emt 0:01:30]} 19. Rac1 {[%emt 0:00:30]} Rfc8 {[%emt 0:07:30]} 20. b4 {[%emt 0:02:30]} Qd8 {[%emt 0:02:30]} 21. b5 {[%emt 0:02:30]} axb5 {[%emt 0:00:30]} 22. Qxb5 {[%emt 0:00:00]} Ra7 {[%emt 0:07:30]} 23. a4 {[%emt 0:08:00]} Ba3 {[%emt 0:06:28]} 24. Ra1 {[%emt 0:00:30]} Qe7 {[%emt 0:00:25]} 25. Qb3 {[%emt 0:11:30]} Bd6 {[%emt 0:00:02]} 26. a5 {[%emt 0:05:43]} Qd8 {[%emt 0:00:46]} 27. Rac1 {[%emt 0:00:30]} Rb8 {[%emt 0:07:15]} 28. Qb6 {[%emt 0:14:12]} Bc7 {[%emt 0:00:05]} 29. Qb3 {[%emt 0:00:07]} Bd6 {[%emt 0:00:03]} 30. Qb6 {[%emt 0:00:02]} Bc7 {[%emt 0:00:04]} 1/2-1/2

[Event "IM Marmaris Karia VII 2019"]
[Site "Marmaris"]
[Date "2019.05.25"]
[Round "4.5"]
[White "Morozov, Nichita"]
[Black "Ozkan, Taha"]
[Result "1-0"]
[ECO "A11"]
[WhiteElo "2371"]
[BlackElo "1977"]
[Annotator "NA"]
[PlyCount "83"]
[EventDate "2019.05.25"]
[EventType "schev"]
[EventCountry "TUR"]
[SourceTitle "playchess.com"]
[Source "ChessBase"]
[SourceQuality "1"]
[TimeControl "5400+30"]

1. Nf3 {[%emt 0:07:30]} d5 {[%emt 0:00:30]} 2. c4 {[%emt 0:00:30]} c6 {[%emt 0:00:00]} 3. e3 {[%emt 0:00:30]} e6 {[%emt 0:00:00]} 4. b3 {[%emt 0:01:30]} Bd6 {[%emt 0:01:30]} 5. Bb2 {[%emt 0:00:30]} Nf6 {[%emt 0:00:30]} 6. d4 {[%emt 0:07:30]} Ne4 {[%emt 0:01:30]} 7. Bd3 {[%emt 0:04:30]} f5 {[%emt 0:02:30]} 8. O-O {[%emt 0:03:30]} O-O {[%emt 0:00:30]} 9. Ne5 {[%emt 0:00:30]} Bd7 {[%emt 0:03:30]} 10. f3 {[%emt 0:01:30]} Nf6 {[%emt 0:01:30]} 11. Nc3 {[%emt 0:07:30]} Be8 {[%emt 0:08:30]} 12. Kh1 {[%emt 0:06:30]} Nbd7 {[%emt 0:01:30]} 13. Nxd7 {[%emt 0:00:30]} Qxd7 {[%emt 0:03:30]} 14. Qe1 {[%emt 0:03:30]} Bf7 {[%emt 0:07:30]} 15. e4 {[%emt 0:00:30]} Bc7 {[%emt 0:00:30]} 16. cxd5 {[%emt 0:07:30]} cxd5 {[%emt 0:09:30]} 17. e5 {[%emt 0:00:30]} Nh5 {[%emt 0:00:30]} 18. Ne2 {[%emt 0:00:00]} g5 {[%emt 0:04:30]} 19. g4 {[%emt 0:03:00]} Ng7 {[%emt 0:04:30]} 20. Ba3 {[%emt 0:04:30]} Rfc8 {[%emt 0:02:30]} 21. f4 {[%emt 0:01:30]} h6 {[%emt 0:08:30]} 22. fxg5 {[%emt 0:01:30]} hxg5 {[%emt 0:00:30]} 23. h4 {[%emt 0:00:30]} Bg6 {[%emt 0:10:30]} 24. h5 {[%emt 0:04:30]} Bh7 {[%emt 0:04:30]} 25. h6 {[%emt 0:00:30]} Ne8 {[%emt 0:00:30]} 26. gxf5 {[%emt 0:00:30]} exf5 {[%emt 0:04:15]} 27. Ng3 {[%emt 0:00:00]} f4 {[%emt 0:01:43]} 28. e6 {[%emt 0:00:00]} Qd8 {[%emt 0:00:26]} 29. Bxh7+ {[%emt 0:01:30]} Kxh7 {[%emt 0:00:42]} 30. Qb1+ {[%emt 0:00:00]} Kxh6 {[%emt 0:04:16]} 31. Nf5+ {[%emt 0:00:00]} Kh5 {[%emt 0:01:11]} 32. Ne7 {[%emt 0:00:30]} Nf6 {[%emt 0:07:09]} 33. Qg6+ {[%emt 0:00:30]} Kh4 {[%emt 0:00:30]} 34. Nf5+ {[%emt 0:00:30]} Kg4 {[%emt 0:00:30]} 35. Rg1+ {[%emt 0:00:30]} Kf3 {[%emt 0:00:30]} 36. Raf1+ {[%emt 0:00:30]} Ke2 {[%emt 0:00:30]} 37. Ng3+ {[%emt 0:00:30]} fxg3 {[%emt 0:00:30]} 38. Rg2+ {[%emt 0:00:30]} Ke3 {[%emt 0:00:30]} 39. Qxg5+ {[%emt 0:00:30]} Kxd4 {[%emt 0:06:41]} 40. Rd2+ {[%emt 0:01:30]} Ke4 {[%emt 0:00:06]} 41. Qf5+ {[%emt 0:00:00]} Ke3 {[%emt 0:00:12]} 42. Qd3# {[%emt 0:00:00]} 1-0

[Event "IM Marmaris Karia VII 2019"]
[Site "Marmaris"]
[Date "2019.05.25"]
[Round "6.1"]
[White "Mgeladze, Tamaz"]
[Black "Eminov, Orkhan"]
[Result "1-0"]
[ECO "A26"]
[WhiteElo "2396"]
[BlackElo "2353"]
[Annotator "NA"]
[PlyCount "69"]
[EventDate "2019.05.25"]
[EventType "schev"]
[EventCountry "TUR"]
[SourceTitle "playchess.com"]
[Source "ChessBase"]
[SourceQuality "1"]
[TimeControl "5400+30"]

1. c4 {[%emt 0:00:30]} e5 {[%emt 0:01:30]} 2. g3 {[%emt 0:00:30]} Nf6 {[%emt 0:00:30]} 3. Bg2 {[%emt 0:00:30]} Nc6 {[%emt 0:00:30]} 4. Nc3 {[%emt 0:01:30]} g6 {[%emt 0:00:30]} 5. Nf3 {[%emt 0:00:30]} Bg7 {[%emt 0:00:00]} 6. O-O {[%emt 0:00:00]} d6 {[%emt 0:00:00]} 7. d3 {[%emt 0:01:00]} O-O {[%emt 0:00:30]} 8. Rb1 {[%emt 0:00:00]} a5 {[%emt 0:00:30]} 9. a3 {[%emt 0:00:00]} h6 {[%emt 0:00:00]} 10. b4 {[%emt 0:00:00]} axb4 {[%emt 0:00:00]} 11. axb4 {[%emt 0:00:00]} Be6 {[%emt 0:00:00]} 12. b5 {[%emt 0:00:00]} Ne7 {[%emt 0:00:00]} 13. Bb2 {[%emt 0:01:00]} Qd7 {[%emt 0:00:30]} 14. d4 {[%emt 0:00:30]} e4 {[%emt 0:07:30]} 15. Nd2 {[%emt 0:00:30]} e3 {[%emt 0:03:30]} 16. fxe3 {[%emt 0:00:30]} Bh3 {[%emt 0:13:30]} 17. Nde4 {[%emt 0:09:30]} Nxe4 {[%emt 0:04:30]} 18. Nxe4 {[%emt 0:00:30]} d5 {[%emt 0:05:30]} 19. Bxh3 {[%emt 0:00:30]} Qxh3 {[%emt 0:00:30]} 20. cxd5 {[%emt 0:01:30]} Nxd5 {[%emt 0:00:30]} 21. Rf3 {[%emt 0:00:30]} Rfe8 {[%emt 0:06:30]} 22. Nf2 {[%emt 0:09:30]} Qd7 {[%emt 0:00:30]} 23. e4 {[%emt 0:00:30]} Nb6 {[%emt 0:02:30]} 24. Qb3 {[%emt 0:01:30]} Na4 {[%emt 0:03:30]} 25. e3 {[%emt 0:04:30]} Nxb2 {[%emt 0:01:30]} 26. Rxb2 {[%emt 0:00:30]} Ra1+ {[%emt 0:10:30]} 27. Kg2 {[%emt 0:04:30]} Rea8 {[%emt 0:03:30]} 28. Rc2 {[%emt 0:02:30]} R8a4 {[%emt 0:05:30]} 29. Qd5 {[%emt 0:02:30]} Qe7 {[%emt 0:05:30]} 30. Qxb7 {[%emt 0:02:30]} Ra7 {[%emt 0:00:30]} 31. Qd5 {[%emt 0:00:30]} R7a5 {[%emt 0:02:30]} 32. Qc5 {[%emt 0:03:30]} Qd7 {[%emt 0:00:30]} 33. Qxc7 {[%emt 0:00:30]} Qxb5 {[%emt 0:00:30]} 34. Qxf7+ {[%emt 0:01:30]} Kh7 {[%emt 0:00:00]} 35. Ng4 {[%emt 0:00:30]} 1-0

[Event "IM Marmaris Karia VII 2019"]
[Site "Marmaris"]
[Date "2019.05.25"]
[Round "6.2"]
[White "Sibashvili, Giorgi"]
[Black "Tanriverdi, Enes"]
[Result "0-1"]
[ECO "D15"]
[WhiteElo "2381"]
[BlackElo "2348"]
[Annotator "NA"]
[PlyCount "76"]
[EventDate "2019.05.25"]
[EventType "schev"]
[EventCountry "TUR"]
[SourceTitle "playchess.com"]
[Source "ChessBase"]
[SourceQuality "1"]
[TimeControl "5400+30"]

1. d4 {[%emt 0:00:30]} d5 {[%emt 0:01:30]} 2. c4 {[%emt 0:00:30]} c6 {[%emt 0:00:00]} 3. Nc3 {[%emt 0:01:30]} dxc4 {[%emt 0:00:00]} 4. e3 {[%emt 0:02:30]} b5 {[%emt 0:00:00]} 5. a4 {[%emt 0:00:30]} b4 {[%emt 0:00:00]} 6. Na2 {[%emt 0:04:30]} e6 {[%emt 0:00:30]} 7. Bxc4 {[%emt 0:00:30]} Nf6 {[%emt 0:00:30]} 8. Nf3 {[%emt 0:02:30]} Be7 {[%emt 0:01:30]} 9. O-O {[%emt 0:01:30]} O-O {[%emt 0:00:30]} 10. b3 {[%emt 0:03:30]} a5 {[%emt 0:01:30]} 11. Bb2 {[%emt 0:02:30]} Bb7 {[%emt 0:00:00]} 12. Nc1 {[%emt 0:01:30]} Nbd7 {[%emt 0:03:00]} 13. Nd3 {[%emt 0:03:30]} c5 {[%emt 0:00:30]} 14. Rc1 {[%emt 0:05:30]} Rc8 {[%emt 0:13:30]} 15. Qe2 {[%emt 0:03:30]} Ne4 {[%emt 0:20:30]} 16. Rfd1 {[%emt 0:02:30]} Qb6 {[%emt 0:03:30]} 17. dxc5 {[%emt 0:03:30]} Ndxc5 {[%emt 0:00:30]} 18. Nde5 {[%emt 0:00:30]} Bf6 {[%emt 0:01:30]} 19. Nd7 {[%emt 0:01:30]} Nxd7 {[%emt 0:00:30]} 20. Rxd7 {[%emt 0:00:30]} Bd5 {[%emt 0:08:30]} 21. Bxd5 {[%emt 0:05:30]} Rxc1+ {[%emt 0:00:00]} 22. Bxc1 {[%emt 0:00:30]} Nc5 {[%emt 0:08:00]} 23. Bxe6 {[%emt 0:04:30]} Qxe6 {[%emt 0:01:30]} 24. Rd1 {[%emt 0:00:30]} Qxb3 {[%emt 0:00:30]} 25. Nd4 {[%emt 0:00:30]} Bxd4 {[%emt 0:00:30]} 26. exd4 {[%emt 0:00:30]} Nxa4 {[%emt 0:00:30]} 27. Re1 {[%emt 0:01:30]} Nc3 {[%emt 0:01:30]} 28. Qg4 {[%emt 0:02:30]} Qc2 {[%emt 0:00:30]} 29. Bf4 {[%emt 0:00:30]} Qg6 {[%emt 0:01:30]} 30. Qf3 {[%emt 0:02:30]} Qf5 {[%emt 0:03:30]} 31. g4 {[%emt 0:01:30]} Qd5 {[%emt 0:00:30]} 32. Qxd5 {[%emt 0:00:00]} Nxd5 {[%emt 0:00:30]} 33. Bd6 {[%emt 0:00:00]} Rc8 {[%emt 0:02:30]} 34. Re5 {[%emt 0:00:30]} b3 {[%emt 0:00:30]} 35. Ba3 {[%emt 0:00:30]} Rd8 {[%emt 0:00:30]} 36. Kf1 {[%emt 0:01:30]} f6 {[%emt 0:01:30]} 37. Re6 {[%emt 0:00:30]} Nc3 {[%emt 0:03:30]} 38. Re3 {[%emt 0:00:30]} Nb1 {[%emt 0:00:30]} 0-1

[Event "IM Marmaris Karia VII 2019"]
[Site "Marmaris"]
[Date "2019.05.25"]
[Round "6.4"]
[White "Papenin, Nikolai"]
[Black "Kilic, Efe Mert"]
[Result "1/2-1/2"]
[ECO "E20"]
[WhiteElo "2336"]
[BlackElo "2248"]
[Annotator "NA"]
[PlyCount "78"]
[EventDate "2019.05.25"]
[EventType "schev"]
[EventCountry "TUR"]
[SourceTitle "playchess.com"]
[Source "ChessBase"]
[SourceQuality "1"]
[TimeControl "5400+30"]

1. d4 {[%emt 0:00:30]} Nf6 {[%emt 0:02:30]} 2. c4 {[%emt 0:00:00]} e6 {[%emt 0:00:30]} 3. Nc3 {[%emt 0:00:00]} Bb4 {[%emt 0:00:30]} 4. g3 {[%emt 0:00:00]} c5 {[%emt 0:00:00]} 5. Nf3 {[%emt 0:00:00]} Ne4 {[%emt 0:00:00]} 6. Qd3 {[%emt 0:00:30]} cxd4 {[%emt 0:01:30]} 7. Nxd4 {[%emt 0:00:30]} Bxc3+ {[%emt 0:00:00]} 8. bxc3 {[%emt 0:00:00]} Nc5 {[%emt 0:00:00]} 9. Qf3 {[%emt 0:02:00]} d6 {[%emt 0:00:30]} 10. Bg2 {[%emt 0:00:00]} e5 {[%emt 0:09:30]} 11. Nb3 {[%emt 0:01:00]} Qc7 {[%emt 0:00:30]} 12. O-O {[%emt 0:00:30]} O-O {[%emt 0:00:30]} 13. Rd1 {[%emt 0:00:30]} Nba6 {[%emt 0:04:30]} 14. Ba3 {[%emt 0:04:30]} Be6 {[%emt 0:02:30]} 15. Bxc5 {[%emt 0:01:30]} Nxc5 {[%emt 0:00:30]} 16. Nxc5 {[%emt 0:00:00]} Qxc5 {[%emt 0:00:00]} 17. Qxb7 {[%emt 0:00:00]} Bxc4 {[%emt 0:02:00]} 18. Rd2 {[%emt 0:09:30]} Be6 {[%emt 0:28:30]} 19. Qxa8 {[%emt 0:03:30]} Rxa8 {[%emt 0:00:30]} 20. Bxa8 {[%emt 0:00:30]} h5 {[%emt 0:14:30]} 21. h4 {[%emt 0:06:30]} Qxc3 {[%emt 0:02:30]} 22. Rad1 {[%emt 0:00:30]} g5 {[%emt 0:04:30]} 23. hxg5 {[%emt 0:00:30]} h4 {[%emt 0:02:30]} 24. gxh4 {[%emt 0:00:30]} Qc4 {[%emt 0:02:30]} 25. Bg2 {[%emt 0:06:30]} d5 {[%emt 0:01:30]} 26. g6 {[%emt 0:05:30]} Qxh4 {[%emt 0:00:30]} 27. gxf7+ {[%emt 0:00:00]} Kxf7 {[%emt 0:00:30]} 28. Rd3 {[%emt 0:01:00]} e4 {[%emt 0:02:07]} 29. Ra3 {[%emt 0:04:30]} Qe7 {[%emt 0:00:07]} 30. Ra4 {[%emt 0:04:30]} Kf6 {[%emt 0:02:28]} 31. Rc1 {[%emt 0:02:30]} Qb7 {[%emt 0:03:16]} 32. Rc3 {[%emt 0:07:30]} Ke5 {[%emt 0:02:45]} 33. Rg3 {[%emt 0:01:30]} Qb5 {[%emt 0:05:23]} 34. Rxa7 {[%emt 0:08:30]} Qxe2 {[%emt 0:00:01]} 35. Rg5+ {[%emt 0:01:30]} Kf4 {[%emt 0:01:20]} 36. Rg3 {[%emt 0:04:30]} Qe1+ {[%emt 0:02:59]} 37. Bf1 {[%emt 0:00:30]} Qe2 {[%emt 0:00:30]} 38. Bg2 {[%emt 0:00:30]} Qd1+ {[%emt 0:00:30]} 39. Bf1 {[%emt 0:00:30]} d4 {[%emt 0:00:30]} 1/2-1/2

[Event "IM Marmaris Karia VII 2019"]
[Site "Marmaris"]
[Date "2019.05.25"]
[Round "6.5"]
[White "Darban, Morteza"]
[Black "Ozkan, Taha"]
[Result "1-0"]
[ECO "B10"]
[WhiteElo "2285"]
[BlackElo "1977"]
[Annotator "NA"]
[PlyCount "65"]
[EventDate "2019.05.25"]
[EventType "schev"]
[EventCountry "TUR"]
[SourceTitle "playchess.com"]
[Source "ChessBase"]
[SourceQuality "1"]
[TimeControl "5400+30"]

1. c4 {[%emt 0:10:30]} c6 {[%emt 0:00:30]} 2. e4 {[%emt 0:00:30]} d5 {[%emt 0:00:00]} 3. cxd5 {[%emt 0:00:30]} cxd5 {[%emt 0:00:00]} 4. exd5 {[%emt 0:00:00]} Nf6 {[%emt 0:00:30]} 5. Qa4+ {[%emt 0:00:00]} Bd7 {[%emt 0:01:30]} 6. Qb3 {[%emt 0:00:00]} Qc7 {[%emt 0:02:30]} 7. Nc3 {[%emt 0:00:00]} a6 {[%emt 0:01:30]} 8. d4 {[%emt 0:09:30]} Bf5 {[%emt 0:04:30]} 9. Nge2 {[%emt 0:07:30]} Nbd7 {[%emt 0:04:30]} 10. Ng3 {[%emt 0:00:00]} Bg6 {[%emt 0:00:30]} 11. f4 {[%emt 0:00:00]} Bh5 {[%emt 0:06:30]} 12. Bd3 {[%emt 0:05:30]} g5 {[%emt 0:08:30]} 13. fxg5 {[%emt 0:00:30]} Bg7 {[%emt 0:00:30]} 14. Be3 {[%emt 0:00:30]} Bg6 {[%emt 0:01:30]} 15. Be2 {[%emt 0:03:30]} Nh5 {[%emt 0:01:30]} 16. Nxh5 {[%emt 0:00:30]} Bxh5 {[%emt 0:02:30]} 17. Bd3 {[%emt 0:00:30]} Bg6 {[%emt 0:00:30]} 18. Be2 {[%emt 0:00:30]} O-O {[%emt 0:02:30]} 19. O-O {[%emt 0:00:30]} b5 {[%emt 0:02:30]} 20. Rad1 {[%emt 0:15:30]} Rad8 {[%emt 0:04:30]} 21. h4 {[%emt 0:13:30]} Qg3 {[%emt 0:07:30]} 22. Rf3 {[%emt 0:01:30]} Qd6 {[%emt 0:00:30]} 23. Rf4 {[%emt 0:07:30]} h6 {[%emt 0:08:30]} 24. gxh6 {[%emt 0:05:26]} Bxh6 {[%emt 0:01:30]} 25. Ne4 {[%emt 0:00:27]} Qb6 {[%emt 0:07:30]} 26. Rg4 {[%emt 0:00:07]} Bg7 {[%emt 0:09:30]} 27. d6 {[%emt 0:00:14]} e6 {[%emt 0:05:07]} 28. d5 {[%emt 0:02:03]} Qb7 {[%emt 0:00:54]} 29. dxe6 {[%emt 0:02:50]} Bxe4 {[%emt 0:00:46]} 30. Bd4 {[%emt 0:03:04]} f6 {[%emt 0:01:16]} 31. Qg3 {[%emt 0:01:26]} Ne5 {[%emt 0:01:58]} 32. Bxe5 {[%emt 0:00:21]} fxe5 {[%emt 0:00:08]} 33. e7 {[%emt 0:00:32]} 1-0

[Event "IM Marmaris Karia VII 2019"]
[Site "Marmaris"]
[Date "2019.05.25"]
[Round "8.1"]
[White "Morozov, Nichita"]
[Black "Eminov, Orkhan"]
[Result "1-0"]
[ECO "A68"]
[WhiteElo "2371"]
[BlackElo "2353"]
[Annotator "ChessBase"]
[PlyCount "67"]
[EventDate "2019.05.25"]
[EventType "schev"]
[EventCountry "TUR"]
[SourceTitle "playchess.com"]
[Source "ChessBase"]
[SourceQuality "1"]
[TimeControl "5400+30"]

1. d4 Nf6 2. c4 g6 3. Nc3 Bg7 4. e4 d6 5. f4 O-O 6. Nf3 c5 7. d5 e6 8. Be2 exd5 9. cxd5 Bg4 10. O-O Bxf3 11. Bxf3 Nbd7 12. g4 a6 13. g5 Ne8 14. Kg2 Qa5 15. h4 Nc7 16. Ne2 Rfe8 17. f5 Be5 18. h5 {[%emt 1:15:00]} Nb5 {[%emt 1:04:00]} 19. hxg6 {[%emt 0:00:30]} hxg6 {[%emt 0:00:30]} 20. f6 {[%emt 0:01:30]} Nd4 {[%emt 0:00:30]} 21. Bg4 {[%emt 0:00:30]} Rad8 {[%emt 0:00:30]} 22. Rf2 {[%emt 0:01:30]} Qb4 {[%emt 0:00:30]} 23. Bd2 {[%emt 0:06:45]} Qc4 {[%emt 0:01:30]} 24. Nxd4 {[%emt 0:03:29]} Qxd4 {[%emt 0:00:30]} 25. Bf3 {[%emt 0:05:02]} Qxb2 {[%emt 0:00:30]} 26. Rb1 {[%emt 0:00:30]} Qd4 {[%emt 0:05:30]} 27. Rxb7 {[%emt 0:05:37]} Nxf6 {[%emt 0:02:30]} 28. gxf6 {[%emt 0:00:32]} Bxf6 {[%emt 0:00:30]} 29. Qh1 {[%emt 0:01:11]} Rb8 {[%emt 0:00:30]} 30. Rxf7 {[%emt 0:02:11]} Kxf7 {[%emt 0:00:00]} 31. Qh7+ {[%emt 0:00:38]} Bg7 {[%emt 0:00:00]} 32. Bg4+ {[%emt 0:00:48]} Qxf2+ {[%emt 0:00:30]} 33. Kxf2 {[%emt 0:00:30]} Rb2 {[%emt 0:00:30]} 34. Be6+ {[%emt 0:00:30]} 1-0